[Event "Titled Tuesday Blitz May 16 Late 2023"]
[White "Torres Dominguez, David"]
[Black "Alexikov, Alexander"]
[WhiteFideId "2220857"]
[BlackFideId "14103958"]
[WhiteElo "1999"]
[BlackElo "2186"]
[Result "1-0"]
[Round "04"]
[TimeControl "180+2"]
[Date "2023.05.16"]
[WhiteClock "0:00:05"]
[BlackClock "0:00:00"]

1. e4 {[%clk 0:02:50]}  c5 {[%clk 0:02:59]} 2. Nc3 {[%clk 0:02:49]}  Nc6 {[%clk 0:02:58]} 3. Bb5 {[%clk 0:02:49]}  g6 {[%clk 0:02:56]} 4. Bxc6 {[%clk 0:02:49]}  dxc6 {[%clk 0:02:55]} 5. d3 {[%clk 0:02:49]}  Bg7 {[%clk 0:02:55]} 6. f4 {[%clk 0:02:50]}  e5 {[%clk 0:02:50]} 7. Nf3 {[%clk 0:02:48]}  Bg4 {[%clk 0:02:44]} 8. fxe5 {[%clk 0:02:45]}  Bxe5 {[%clk 0:02:41]} 9. O-O {[%clk 0:02:45]}  Qd6 {[%clk 0:02:30]} 10. h3 {[%clk 0:02:43]}  Bxf3 {[%clk 0:02:28]} 11. Qxf3 {[%clk 0:02:44]}  f6 {[%clk 0:02:27]} 12. Bf4 {[%clk 0:02:38]}  Bxf4 {[%clk 0:02:25]} 13. Qxf4 {[%clk 0:02:38]}  Qxf4 {[%clk 0:02:24]} 14. Rxf4 {[%clk 0:02:39]}  h5 {[%clk 0:02:16]} 15. Raf1 {[%clk 0:02:36]}  Rd8 {[%clk 0:02:05]} 16. b3 {[%clk 0:02:35]}  Rh7 {[%clk 0:02:04]} 17. Nd1 {[%clk 0:02:34]}  Re7 {[%clk 0:01:48]} 18. a4 {[%clk 0:02:11]}  b6 {[%clk 0:01:36]} 19. R4f3 {[%clk 0:02:11]}  Re6 {[%clk 0:01:34]} 20. Ne3 {[%clk 0:02:11]}  Kf7 {[%clk 0:01:31]} 21. Nc4 {[%clk 0:02:10]}  Kg7 {[%clk 0:01:29]} 22. Kh2 {[%clk 0:01:56]}  h4 {[%clk 0:01:27]} 23. g4 {[%clk 0:01:55]}  hxg3+ {[%clk 0:01:26]} 24. Kxg3 {[%clk 0:01:56]}  Ne7 {[%clk 0:01:23]} 25. Ne3 {[%clk 0:01:49]}  Rh8 {[%clk 0:01:19]} 26. Ng4 {[%clk 0:01:49]}  Ng8 {[%clk 0:01:18]} 27. Kg2 {[%clk 0:01:40]}  Rh5 {[%clk 0:01:16]} 28. Rg3 {[%clk 0:01:39]}  Ne7 {[%clk 0:01:06]} 29. Ne3 {[%clk 0:01:35]}  Kf7 {[%clk 0:00:54]} 30. Rg1 {[%clk 0:01:34]}  b5 {[%clk 0:00:33]} 31. Ra1 {[%clk 0:01:30]}  a6 {[%clk 0:00:31]} 32. axb5 {[%clk 0:01:29]}  cxb5 {[%clk 0:00:30]} 33. Rf3 {[%clk 0:01:26]}  Kg7 {[%clk 0:00:22]} 34. Kf2 {[%clk 0:01:24]}  Rd6 {[%clk 0:00:15]} 35. Rg1 {[%clk 0:01:21]}  Re6 {[%clk 0:00:15]} 36. Nf5+ {[%clk 0:01:11]}  Kf7 {[%clk 0:00:14]} 37. Nxe7 {[%clk 0:01:08]}  Rxe7 {[%clk 0:00:14]} 38. Ra1 {[%clk 0:01:08]}  Re6 {[%clk 0:00:14]} 39. e5 {[%clk 0:01:06]}  Rhxe5 {[%clk 0:00:12]} 40. Kg3 {[%clk 0:00:56]}  Re2 {[%clk 0:00:11]} 41. c4 {[%clk 0:00:50]}  bxc4 {[%clk 0:00:11]} 42. dxc4 {[%clk 0:00:48]}  Rb2 {[%clk 0:00:09]} 43. Ra3 {[%clk 0:00:48]}  g5 {[%clk 0:00:09]} 44. h4 {[%clk 0:00:46]}  Kg6 {[%clk 0:00:08]} 45. hxg5 {[%clk 0:00:44]}  Kxg5 {[%clk 0:00:08]} 46. Kh3 {[%clk 0:00:39]}  f5 {[%clk 0:00:07]} 47. Ra5 {[%clk 0:00:33]}  Ree2 {[%clk 0:00:06]} 48. Rf1 {[%clk 0:00:09]}  Rh2+ {[%clk 0:00:03]} 49. Kg3 {[%clk 0:00:09]}  f4+ {[%clk 0:00:03]} 50. Kf3 {[%clk 0:00:09]}  Rh3+ {[%clk 0:00:02]} 51. Ke4 {[%clk 0:00:09]}  Re3+ {[%clk 0:00:02]} 52. Kd5 {[%clk 0:00:08]}  Rbxb3 {[%clk 0:00:02]} 53. Rxc5 {[%clk 0:00:08]}  f3 {[%clk 0:00:01]} 54. Kc6+ {[%clk 0:00:08]}  Kf4 {[%clk 0:00:00]} 55. Kc7 {[%clk 0:00:05]} 1-0


[Site "https://www.chess.com"]

[Event "Titled Tuesday Blitz May 16 Late 2023"]
[White "Einarsson, Halldor Gretar"]
[Black "Martinez, Ayelen"]
[WhiteFideId "2300150"]
[BlackFideId "118702"]
[WhiteElo "2110"]
[BlackElo "2125"]
[Result "0-1"]
[Round "04"]
[TimeControl "180+2"]
[Date "2023.05.16"]
[WhiteClock "0:00:19"]
[BlackClock "0:01:48"]

1. d4 {[%clk 0:02:58]}  Nf6 {[%clk 0:02:59]} 2. c4 {[%clk 0:02:58]}  g6 {[%clk 0:03:00]} 3. f3 {[%clk 0:02:58]}  Bg7 {[%clk 0:03:00]} 4. e4 {[%clk 0:02:58]}  O-O {[%clk 0:03:00]} 5. Nc3 {[%clk 0:02:58]}  d6 {[%clk 0:03:00]} 6. Be3 {[%clk 0:02:58]}  e5 {[%clk 0:02:57]} 7. Nge2 {[%clk 0:02:57]}  Nc6 {[%clk 0:02:55]} 8. d5 {[%clk 0:02:53]}  Ne7 {[%clk 0:02:55]} 9. Qd2 {[%clk 0:02:45]}  Nd7 {[%clk 0:02:52]} 10. O-O-O {[%clk 0:02:36]}  f5 {[%clk 0:02:49]} 11. Bh6 {[%clk 0:02:35]}  f4 {[%clk 0:02:39]} 12. Bxg7 {[%clk 0:02:34]}  Kxg7 {[%clk 0:02:40]} 13. h4 {[%clk 0:02:08]}  a5 {[%clk 0:02:38]} 14. h5 {[%clk 0:02:05]}  g5 {[%clk 0:02:31]} 15. g3 {[%clk 0:01:48]}  a4 {[%clk 0:02:22]} 16. Bh3 {[%clk 0:01:40]}  Nc5 {[%clk 0:02:16]} 17. gxf4 {[%clk 0:01:26]}  gxf4 {[%clk 0:02:14]} 18. Rdg1+ {[%clk 0:01:08]}  Kh8 {[%clk 0:02:14]} 19. Kb1 {[%clk 0:01:08]}  a3 {[%clk 0:02:11]} 20. b3 {[%clk 0:01:02]}  Bxh3 {[%clk 0:02:06]} 21. Rxh3 {[%clk 0:01:01]}  Qd7 {[%clk 0:02:07]} 22. Rh4 {[%clk 0:00:50]}  Rg8 {[%clk 0:02:07]} 23. Rhg4 {[%clk 0:00:48]}  Rxg4 {[%clk 0:02:06]} 24. Rxg4 {[%clk 0:00:47]}  Rg8 {[%clk 0:02:07]} 25. Rxg8+ {[%clk 0:00:33]}  Nxg8 {[%clk 0:02:08]} 26. Nxf4 {[%clk 0:00:31]}  exf4 {[%clk 0:02:05]} 27. Qxf4 {[%clk 0:00:30]}  Qg7 {[%clk 0:02:03]} 28. Kc2 {[%clk 0:00:28]}  Qg2+ {[%clk 0:01:59]} 29. Qd2 {[%clk 0:00:26]}  Qxf3 {[%clk 0:01:55]} 30. b4 {[%clk 0:00:25]}  Nxe4 {[%clk 0:01:51]} 31. Qd4+ {[%clk 0:00:24]}  Ngf6 {[%clk 0:01:49]} 32. c5 {[%clk 0:00:22]}  Qxc3+ {[%clk 0:01:47]} 33. Qxc3 {[%clk 0:00:19]}  Nxc3 {[%clk 0:01:48]} 0-1


[Site "https://www.chess.com"]

[Event "Titled Tuesday Blitz May 16 Late 2023"]
[White "Joubert, Dantelle"]
[Black "Vifleemskaia, Svetlana"]
[WhiteFideId "14310813"]
[BlackFideId "4129490"]
[WhiteElo "1507"]
[BlackElo "1930"]
[Result "0-1"]
[Round "04"]
[TimeControl "180+2"]
[Date "2023.05.16"]
[WhiteClock "0:00:00"]
[BlackClock "0:01:06"]

1. d4 {[%clk 0:03:00]}  Nf6 {[%clk 0:02:53]} 2. c4 {[%clk 0:03:00]}  e6 {[%clk 0:02:52]} 3. Nc3 {[%clk 0:02:58]}  Bb4 {[%clk 0:02:53]} 4. e3 {[%clk 0:02:57]}  O-O {[%clk 0:02:52]} 5. Ne2 {[%clk 0:02:57]}  Ne4 {[%clk 0:02:51]} 6. Qc2 {[%clk 0:02:52]}  f5 {[%clk 0:02:50]} 7. a3 {[%clk 0:02:52]}  Bxc3+ {[%clk 0:02:40]} 8. Nxc3 {[%clk 0:02:53]}  Nxc3 {[%clk 0:02:38]} 9. Qxc3 {[%clk 0:02:51]}  b6 {[%clk 0:02:38]} 10. Be2 {[%clk 0:02:29]}  Bb7 {[%clk 0:02:38]} 11. O-O {[%clk 0:02:28]}  Qg5 {[%clk 0:02:36]} 12. e4 {[%clk 0:02:11]}  f4 {[%clk 0:02:34]} 13. f3 {[%clk 0:02:11]}  d6 {[%clk 0:02:31]} 14. Bd2 {[%clk 0:01:59]}  Nd7 {[%clk 0:02:29]} 15. c5 {[%clk 0:01:53]}  bxc5 {[%clk 0:02:26]} 16. Bb5 {[%clk 0:01:51]}  c6 {[%clk 0:02:23]} 17. Ba4 {[%clk 0:01:45]}  cxd4 {[%clk 0:02:22]} 18. Qxd4 {[%clk 0:01:45]}  Qc5 {[%clk 0:02:22]} 19. Bc3 {[%clk 0:01:37]}  e5 {[%clk 0:02:18]} 20. Bb3+ {[%clk 0:01:31]}  Kh8 {[%clk 0:02:17]} 21. Qf2 {[%clk 0:01:26]}  Qxf2+ {[%clk 0:02:11]} 22. Kxf2 {[%clk 0:01:25]}  Nc5 {[%clk 0:02:11]} 23. Bc2 {[%clk 0:01:21]}  Ba6 {[%clk 0:02:04]} 24. Rfd1 {[%clk 0:01:20]}  Rfd8 {[%clk 0:02:03]} 25. Bb4 {[%clk 0:01:13]}  Kg8 {[%clk 0:01:54]} 26. Bxc5 {[%clk 0:00:57]}  dxc5 {[%clk 0:01:53]} 27. Rac1 {[%clk 0:00:47]}  c4 {[%clk 0:01:46]} 28. Ba4 {[%clk 0:00:39]}  Bb5 {[%clk 0:01:41]} 29. Bc2 {[%clk 0:00:39]}  Kf7 {[%clk 0:01:39]} 30. a4 {[%clk 0:00:34]}  Ba6 {[%clk 0:01:39]} 31. b3 {[%clk 0:00:31]}  Ke7 {[%clk 0:01:35]} 32. bxc4 {[%clk 0:00:26]}  Bxc4 {[%clk 0:01:34]} 33. Rxd8 {[%clk 0:00:19]}  Rxd8 {[%clk 0:01:33]} 34. Bb1 {[%clk 0:00:20]}  Rd4 {[%clk 0:01:31]} 35. Ke1 {[%clk 0:00:12]}  Kd6 {[%clk 0:01:30]} 36. Bc2 {[%clk 0:00:10]}  Kc5 {[%clk 0:01:21]} 37. Rb1 {[%clk 0:00:09]}  Rd7 {[%clk 0:01:20]} 38. Rb8 {[%clk 0:00:09]}  Kd4 {[%clk 0:01:15]} 39. Kd2 {[%clk 0:00:07]}  Bf1 {[%clk 0:01:10]} 40. Bb3 {[%clk 0:00:00]}  Bxg2 {[%clk 0:01:06]} 0-1


[Site "https://www.chess.com"]

[Event "Titled Tuesday Blitz May 16 Late 2023"]
[White "Smiechu"]
[Black "Vargas, Mauricio"]
[BlackFideId "4404572"]
[WhiteElo "2282"]
[BlackElo "1986"]
[Result "1-0"]
[Round "04"]
[TimeControl "180+2"]
[Date "2023.05.16"]
[WhiteClock "0:01:44"]
[BlackClock "0:00:02"]

1. e4 {[%clk 0:03:00]}  c5 {[%clk 0:02:58]} 2. Nf3 {[%clk 0:03:01]}  Nc6 {[%clk 0:02:57]} 3. d4 {[%clk 0:03:01]}  cxd4 {[%clk 0:02:57]} 4. Nxd4 {[%clk 0:03:02]}  d6 {[%clk 0:02:53]} 5. Nc3 {[%clk 0:03:02]}  g6 {[%clk 0:02:51]} 6. Be3 {[%clk 0:03:02]}  Bg7 {[%clk 0:02:49]} 7. f3 {[%clk 0:03:01]}  Nf6 {[%clk 0:02:49]} 8. Qd2 {[%clk 0:03:01]}  O-O {[%clk 0:02:47]} 9. Bc4 {[%clk 0:03:01]}  Bd7 {[%clk 0:02:42]} 10. h4 {[%clk 0:03:01]}  Rc8 {[%clk 0:02:39]} 11. Bb3 {[%clk 0:03:01]}  Ne5 {[%clk 0:02:35]} 12. h5 {[%clk 0:02:56]}  Nc4 {[%clk 0:02:00]} 13. Bxc4 {[%clk 0:02:54]}  Rxc4 {[%clk 0:02:00]} 14. hxg6 {[%clk 0:02:41]}  fxg6 {[%clk 0:01:57]} 15. Bh6 {[%clk 0:02:37]}  Rxc3 {[%clk 0:01:54]} 16. Qxc3 {[%clk 0:02:32]}  Nh5 {[%clk 0:01:42]} 17. Bxg7 {[%clk 0:02:31]}  Nxg7 {[%clk 0:01:37]} 18. O-O-O {[%clk 0:02:30]}  Qb6 {[%clk 0:01:14]} 19. Qc4+ {[%clk 0:02:26]}  e6 {[%clk 0:01:07]} 20. Qb3 {[%clk 0:02:18]}  Qc7 {[%clk 0:00:57]} 21. Nb5 {[%clk 0:02:16]}  Qc5 {[%clk 0:00:40]} 22. Nxd6 {[%clk 0:02:10]}  Bc6 {[%clk 0:00:36]} 23. Kb1 {[%clk 0:01:59]}  a5 {[%clk 0:00:28]} 24. Qc4 {[%clk 0:01:54]}  Qb6 {[%clk 0:00:16]} 25. e5 {[%clk 0:01:50]}  a4 {[%clk 0:00:15]} 26. Ne4 {[%clk 0:01:49]}  a3 {[%clk 0:00:14]} 27. Qb3 {[%clk 0:01:47]}  Bd5 {[%clk 0:00:13]} 28. Qxb6 {[%clk 0:01:46]}  axb2 {[%clk 0:00:08]} 29. Nf6+ {[%clk 0:01:45]}  Kh8 {[%clk 0:00:02]} 30. Rxh7# {[%clk 0:01:44]} 1-0


[Site "https://www.chess.com"]

[Event "Titled Tuesday Blitz May 16 Late 2023"]
[White "Durarbayli, Vasif"]
[Black "Caruana, Fabiano"]
[WhiteFideId "13402935"]
[BlackFideId "2020009"]
[WhiteElo "2551"]
[BlackElo "2837"]
[Result "1/2-1/2"]
[Round "05"]
[TimeControl "180+2"]
[Date "2023.05.16"]
[WhiteClock "0:00:04"]
[BlackClock "0:00:05"]

1. e4 {[%clk 0:03:00]}  e5 {[%clk 0:02:58]} 2. Nc3 {[%clk 0:03:00]}  Nc6 {[%clk 0:02:57]} 3. f4 {[%clk 0:03:00]}  exf4 {[%clk 0:02:55]} 4. d4 {[%clk 0:03:00]}  Qh4+ {[%clk 0:02:54]} 5. Ke2 {[%clk 0:02:59]}  d6 {[%clk 0:02:52]} 6. Nf3 {[%clk 0:02:59]}  Bg4 {[%clk 0:02:51]} 7. Bxf4 {[%clk 0:02:59]}  O-O-O {[%clk 0:02:46]} 8. Ke3 {[%clk 0:02:59]}  Qe7 {[%clk 0:02:42]} 9. Nd5 {[%clk 0:02:42]}  Qe8 {[%clk 0:02:41]} 10. Bd3 {[%clk 0:01:54]}  f5 {[%clk 0:02:37]} 11. Re1 {[%clk 0:01:53]}  fxe4 {[%clk 0:02:18]} 12. Bxe4 {[%clk 0:01:54]}  Nge7 {[%clk 0:01:39]} 13. Kf2 {[%clk 0:01:41]}  Qf7 {[%clk 0:01:36]} 14. Ng5 {[%clk 0:01:22]}  Qh5 {[%clk 0:01:14]} 15. Nxe7+ {[%clk 0:01:19]}  Nxe7 {[%clk 0:01:15]} 16. Bf3 {[%clk 0:01:18]}  Bxf3 {[%clk 0:01:15]} 17. Qxf3 {[%clk 0:01:18]}  Qxf3+ {[%clk 0:01:14]} 18. Kxf3 {[%clk 0:01:16]}  Re8 {[%clk 0:01:08]} 19. Nf7 {[%clk 0:00:47]}  Rg8 {[%clk 0:01:07]} 20. Bxd6 {[%clk 0:00:48]}  cxd6 {[%clk 0:01:04]} 21. Nxd6+ {[%clk 0:00:49]}  Kd7 {[%clk 0:01:05]} 22. Nxe8 {[%clk 0:00:49]}  Kxe8 {[%clk 0:01:05]} 23. c4 {[%clk 0:00:47]}  Kd7 {[%clk 0:01:04]} 24. d5 {[%clk 0:00:46]}  Ng6 {[%clk 0:01:02]} 25. g3 {[%clk 0:00:43]}  Bd6 {[%clk 0:00:57]} 26. Rac1 {[%clk 0:00:39]}  b6 {[%clk 0:00:48]} 27. a3 {[%clk 0:00:34]}  a5 {[%clk 0:00:47]} 28. Kg2 {[%clk 0:00:24]}  a4 {[%clk 0:00:37]} 29. Re4 {[%clk 0:00:21]}  Bc5 {[%clk 0:00:29]} 30. Rf1 {[%clk 0:00:19]}  Rf8 {[%clk 0:00:25]} 31. Rxf8 {[%clk 0:00:19]}  Nxf8 {[%clk 0:00:26]} 32. Kf3 {[%clk 0:00:19]}  Ng6 {[%clk 0:00:22]} 33. Ke2 {[%clk 0:00:19]}  Ne7 {[%clk 0:00:21]} 34. Kd3 {[%clk 0:00:16]}  Nf5 {[%clk 0:00:19]} 35. Rf4 {[%clk 0:00:16]}  Nd6 {[%clk 0:00:13]} 36. Rg4 {[%clk 0:00:16]}  g6 {[%clk 0:00:13]} 37. Rh4 {[%clk 0:00:16]}  h5 {[%clk 0:00:13]} 38. Rf4 {[%clk 0:00:16]}  Nf5 {[%clk 0:00:13]} 39. g4 {[%clk 0:00:17]}  hxg4 {[%clk 0:00:12]} 40. Rxg4 {[%clk 0:00:18]}  Ne7 {[%clk 0:00:12]} 41. h3 {[%clk 0:00:13]}  Bd6 {[%clk 0:00:12]} 42. Re4 {[%clk 0:00:12]}  Bc7 {[%clk 0:00:07]} 43. Re6 {[%clk 0:00:13]}  Bd6 {[%clk 0:00:07]} 44. Kc3 {[%clk 0:00:12]}  Kc7 {[%clk 0:00:06]} 45. b4 {[%clk 0:00:08]}  axb3 {[%clk 0:00:07]} 46. Kxb3 {[%clk 0:00:09]}  Kd7 {[%clk 0:00:07]} 47. a4 {[%clk 0:00:09]}  g5 {[%clk 0:00:07]} 48. Kc3 {[%clk 0:00:09]}  Kc7 {[%clk 0:00:02]} 49. Kd3 {[%clk 0:00:09]}  Kd7 {[%clk 0:00:03]} 50. Ke4 {[%clk 0:00:09]}  Bc5 {[%clk 0:00:03]} 51. Rh6 {[%clk 0:00:07]}  Nc8 {[%clk 0:00:03]} 52. Rg6 {[%clk 0:00:06]}  Be7 {[%clk 0:00:03]} 53. Kd3 {[%clk 0:00:05]}  Nd6 {[%clk 0:00:04]} 54. Kd4 {[%clk 0:00:04]}  Nf5+ {[%clk 0:00:04]} 55. Kd3 {[%clk 0:00:04]}  Nd6 {[%clk 0:00:05]} 56. Rg7 {[%clk 0:00:04]}  Nf5 {[%clk 0:00:05]} 57. Rg6 {[%clk 0:00:04]}  Nd6 {[%clk 0:00:05]} 1/2-1/2


[Site "https://www.chess.com"]

[Event "Titled Tuesday Blitz May 16 Late 2023"]
[White "Xiong, Jeffery"]
[Black "Deac, Bogdan-Daniel"]
[WhiteFideId "2047640"]
[BlackFideId "1226380"]
[WhiteElo "2726"]
[BlackElo "2649"]
[Result "1/2-1/2"]
[Round "05"]
[TimeControl "180+2"]
[Date "2023.05.16"]
[WhiteClock "0:02:44"]
[BlackClock "0:01:34"]

1. e4 {[%clk 0:03:00]}  e5 {[%clk 0:02:59]} 2. Nf3 {[%clk 0:03:01]}  Nf6 {[%clk 0:02:59]} 3. Nc3 {[%clk 0:03:01]}  Nc6 {[%clk 0:02:59]} 4. d4 {[%clk 0:03:02]}  exd4 {[%clk 0:03:00]} 5. Nxd4 {[%clk 0:03:03]}  Bb4 {[%clk 0:03:00]} 6. Nxc6 {[%clk 0:03:04]}  bxc6 {[%clk 0:03:01]} 7. Bd3 {[%clk 0:03:05]}  O-O {[%clk 0:03:01]} 8. O-O {[%clk 0:03:05]}  d5 {[%clk 0:03:02]} 9. exd5 {[%clk 0:03:06]}  Bg4 {[%clk 0:03:02]} 10. f3 {[%clk 0:03:06]}  Bh5 {[%clk 0:03:02]} 11. dxc6 {[%clk 0:03:07]}  Qd4+ {[%clk 0:03:02]} 12. Kh1 {[%clk 0:03:08]}  Bxc3 {[%clk 0:03:03]} 13. bxc3 {[%clk 0:03:08]}  Qxc3 {[%clk 0:03:04]} 14. Rb1 {[%clk 0:03:09]}  Bg6 {[%clk 0:03:03]} 15. Rb3 {[%clk 0:03:10]}  Qxc6 {[%clk 0:03:03]} 16. Bb2 {[%clk 0:03:10]}  Rab8 {[%clk 0:02:49]} 17. Qa1 {[%clk 0:03:09]}  Rxb3 {[%clk 0:02:42]} 18. axb3 {[%clk 0:03:09]}  Bxd3 {[%clk 0:02:42]} 19. cxd3 {[%clk 0:03:09]}  Qb6 {[%clk 0:02:42]} 20. Bxf6 {[%clk 0:03:07]}  gxf6 {[%clk 0:02:34]} 21. Rc1 {[%clk 0:03:06]}  Rd8 {[%clk 0:02:18]} 22. Qc3 {[%clk 0:03:06]}  c5 {[%clk 0:01:52]} 23. h3 {[%clk 0:02:53]}  Kg7 {[%clk 0:01:42]} 24. Qxc5 {[%clk 0:02:48]}  Qxc5 {[%clk 0:01:36]} 25. Rxc5 {[%clk 0:02:49]}  Rxd3 {[%clk 0:01:36]} 26. Ra5 {[%clk 0:02:49]}  Rxb3 {[%clk 0:01:35]} 27. Rxa7 {[%clk 0:02:44]}  f5 {[%clk 0:01:34]} 1/2-1/2


[Site "https://www.chess.com"]

[Event "Titled Tuesday Blitz May 16 Late 2023"]
[White "Andreikin, Dmitry"]
[Black "Iturrizaga Bonelli, Eduardo"]
[WhiteFideId "4158814"]
[BlackFideId "3901211"]
[WhiteElo "2736"]
[BlackElo "2637"]
[Result "1-0"]
[Round "05"]
[TimeControl "180+2"]
[Date "2023.05.16"]
[WhiteClock "0:01:24"]
[BlackClock "0:00:00"]

1. Nf3 {[%clk 0:03:00]}  Nf6 {[%clk 0:02:59]} 2. c4 {[%clk 0:03:00]}  c5 {[%clk 0:02:59]} 3. Nc3 {[%clk 0:02:59]}  g6 {[%clk 0:02:59]} 4. e4 {[%clk 0:02:55]}  Nc6 {[%clk 0:03:00]} 5. d4 {[%clk 0:02:54]}  cxd4 {[%clk 0:03:01]} 6. Nxd4 {[%clk 0:02:54]}  d6 {[%clk 0:03:01]} 7. f3 {[%clk 0:02:52]}  Nxd4 {[%clk 0:02:57]} 8. Qxd4 {[%clk 0:02:53]}  Bg7 {[%clk 0:02:57]} 9. c5 {[%clk 0:02:42]}  O-O {[%clk 0:02:56]} 10. cxd6 {[%clk 0:02:41]}  Ne8 {[%clk 0:02:56]} 11. Qf2 {[%clk 0:02:33]}  Nxd6 {[%clk 0:02:55]} 12. Be2 {[%clk 0:02:33]}  Be6 {[%clk 0:02:46]} 13. O-O {[%clk 0:02:32]}  Qa5 {[%clk 0:02:40]} 14. Be3 {[%clk 0:02:29]}  Nc4 {[%clk 0:02:25]} 15. Bxc4 {[%clk 0:02:27]}  Bxc4 {[%clk 0:02:26]} 16. Rfd1 {[%clk 0:02:27]}  Rfd8 {[%clk 0:02:25]} 17. Bd4 {[%clk 0:02:23]}  Bxd4 {[%clk 0:01:33]} 18. Rxd4 {[%clk 0:02:24]}  Rxd4 {[%clk 0:01:33]} 19. Qxd4 {[%clk 0:02:24]}  Be6 {[%clk 0:01:34]} 20. Rd1 {[%clk 0:02:23]}  Rc8 {[%clk 0:01:30]} 21. a3 {[%clk 0:02:23]}  b6 {[%clk 0:01:13]} 22. h4 {[%clk 0:02:17]}  Qh5 {[%clk 0:01:10]} 23. Qf2 {[%clk 0:02:12]}  Qe5 {[%clk 0:01:10]} 24. Qd4 {[%clk 0:02:10]}  Qh5 {[%clk 0:01:09]} 25. Qf2 {[%clk 0:02:11]}  Qe5 {[%clk 0:01:10]} 26. Rd2 {[%clk 0:02:10]}  Kg7 {[%clk 0:01:00]} 27. Qd4 {[%clk 0:02:07]}  Qxd4+ {[%clk 0:00:57]} 28. Rxd4 {[%clk 0:02:08]}  Rc5 {[%clk 0:00:55]} 29. Kf2 {[%clk 0:02:06]}  h6 {[%clk 0:00:54]} 30. g3 {[%clk 0:02:05]}  g5 {[%clk 0:00:54]} 31. hxg5 {[%clk 0:02:04]}  hxg5 {[%clk 0:00:54]} 32. Ke3 {[%clk 0:02:04]}  f6 {[%clk 0:00:26]} 33. f4 {[%clk 0:02:04]}  gxf4+ {[%clk 0:00:26]} 34. gxf4 {[%clk 0:02:05]}  Kf7 {[%clk 0:00:26]} 35. f5 {[%clk 0:02:02]}  Bc8 {[%clk 0:00:26]} 36. Rd8 {[%clk 0:02:02]}  e6 {[%clk 0:00:25]} 37. fxe6+ {[%clk 0:01:54]}  Bxe6 {[%clk 0:00:21]} 38. Ra8 {[%clk 0:01:53]}  Ra5 {[%clk 0:00:18]} 39. Kd4 {[%clk 0:01:51]}  Ke7 {[%clk 0:00:17]} 40. a4 {[%clk 0:01:50]}  Bb3 {[%clk 0:00:11]} 41. Rh8 {[%clk 0:01:28]}  Ke6 {[%clk 0:00:09]} 42. Rh7 {[%clk 0:01:27]}  Bxa4 {[%clk 0:00:06]} 43. b4 {[%clk 0:01:26]}  Ra6 {[%clk 0:00:06]} 44. Nd5 {[%clk 0:01:25]}  Kd6 {[%clk 0:00:00]} 45. Nc7 {[%clk 0:01:24]} 1-0


[Site "https://www.chess.com"]

[Event "Titled Tuesday Blitz May 16 Late 2023"]
[White "Pakleza, Zbigniew"]
[Black "Bortnyk, Olexandr"]
[WhiteFideId "1119290"]
[BlackFideId "14120828"]
[WhiteElo "2410"]
[BlackElo "2734"]
[Result "0-1"]
[Round "05"]
[TimeControl "180+2"]
[Date "2023.05.16"]
[WhiteClock "0:00:00"]
[BlackClock "0:00:17"]

1. d4 {[%clk 0:03:00]}  d6 {[%clk 0:02:49]} 2. Nf3 {[%clk 0:03:00]}  Nf6 {[%clk 0:02:49]} 3. Bf4 {[%clk 0:03:01]}  g6 {[%clk 0:02:44]} 4. e3 {[%clk 0:03:00]}  Bg7 {[%clk 0:02:45]} 5. h3 {[%clk 0:03:01]}  Nfd7 {[%clk 0:02:45]} 6. Be2 {[%clk 0:03:01]}  e5 {[%clk 0:02:45]} 7. Bh2 {[%clk 0:03:01]}  Nc6 {[%clk 0:02:43]} 8. O-O {[%clk 0:03:01]}  O-O {[%clk 0:02:42]} 9. c4 {[%clk 0:03:01]}  exd4 {[%clk 0:02:38]} 10. exd4 {[%clk 0:03:02]}  Re8 {[%clk 0:02:23]} 11. Nc3 {[%clk 0:03:01]}  Nf6 {[%clk 0:02:23]} 12. d5 {[%clk 0:02:48]}  Ne7 {[%clk 0:02:22]} 13. Re1 {[%clk 0:02:41]}  a6 {[%clk 0:02:20]} 14. Rc1 {[%clk 0:02:37]}  Bf5 {[%clk 0:02:14]} 15. Nd4 {[%clk 0:02:34]}  Bd7 {[%clk 0:02:07]} 16. b4 {[%clk 0:02:24]}  Nf5 {[%clk 0:02:04]} 17. Nb3 {[%clk 0:02:17]}  Ne4 {[%clk 0:01:58]} 18. Nxe4 {[%clk 0:02:10]}  Rxe4 {[%clk 0:01:59]} 19. Bd3 {[%clk 0:01:48]}  Rxe1+ {[%clk 0:01:56]} 20. Qxe1 {[%clk 0:01:48]}  Qg5 {[%clk 0:01:44]} 21. Qd2 {[%clk 0:01:28]}  Qxd2 {[%clk 0:01:37]} 22. Nxd2 {[%clk 0:01:29]}  Re8 {[%clk 0:01:37]} 23. Kf1 {[%clk 0:01:23]}  Bb2 {[%clk 0:01:36]} 24. Rb1 {[%clk 0:01:12]}  Bg7 {[%clk 0:01:19]} 25. Bf4 {[%clk 0:00:58]}  Kf8 {[%clk 0:00:55]} 26. c5 {[%clk 0:00:52]}  Be5 {[%clk 0:00:52]} 27. Bxe5 {[%clk 0:00:15]}  Rxe5 {[%clk 0:00:53]} 28. Bc4 {[%clk 0:00:12]}  Bb5 {[%clk 0:00:53]} 29. a4 {[%clk 0:00:08]}  Bxc4+ {[%clk 0:00:51]} 30. Nxc4 {[%clk 0:00:09]}  Rxd5 {[%clk 0:00:51]} 31. cxd6 {[%clk 0:00:07]}  Nxd6 {[%clk 0:00:49]} 32. Rc1 {[%clk 0:00:06]}  Rd4 {[%clk 0:00:45]} 33. Nxd6 {[%clk 0:00:06]}  cxd6 {[%clk 0:00:46]} 34. b5 {[%clk 0:00:06]}  Rxa4 {[%clk 0:00:46]} 35. Rc7 {[%clk 0:00:02]}  axb5 {[%clk 0:00:41]} 36. Rxb7 {[%clk 0:00:03]}  Rb4 {[%clk 0:00:39]} 37. g4 {[%clk 0:00:03]}  h5 {[%clk 0:00:35]} 38. f3 {[%clk 0:00:02]}  h4 {[%clk 0:00:33]} 39. Ke2 {[%clk 0:00:02]}  g5 {[%clk 0:00:24]} 40. Ke3 {[%clk 0:00:03]}  Ke8 {[%clk 0:00:25]} 41. Ra7 {[%clk 0:00:02]}  Rc4 {[%clk 0:00:22]} 42. Rb7 {[%clk 0:00:02]}  b4 {[%clk 0:00:20]} 43. Kd3 {[%clk 0:00:03]}  Rf4 {[%clk 0:00:19]} 44. Ke3 {[%clk 0:00:04]}  f6 {[%clk 0:00:17]} 45. Ke2 {[%clk 0:00:03]}  Kd8 {[%clk 0:00:18]} 46. Rh7 {[%clk 0:00:02]}  Kc8 {[%clk 0:00:17]} 47. Ke3 {[%clk 0:00:02]}  b3 {[%clk 0:00:17]} 48. Rh8+ {[%clk 0:00:00]}  Kc7 {[%clk 0:00:17]} 0-1


[Site "https://www.chess.com"]